[Event "January 2 Late 2024"]
[Site "https://www.chess.com"]
[Date "2024.01.02"]
[Round "4"]
[White "Bardyk, Artem"]
[Black "Naroditsky, Daniel"]
[Result "0-1"]
[Board "24"]
[TimeControl "180+1"]
[WhiteFideId "34349979"]
[BlackFideId "2026961"]
[WhiteElo "2718"]
[BlackElo "3148"]
[WhiteTeam "RUS"]
[BlackTeam "USA"]
[WhiteClock "0:00:00"]
[BlackClock "0:01:35"]

1. e4 {[%clk 0:03:00]}  c5 {[%clk 0:02:59]} 2. c3 {[%clk 0:03:00]}  d6 {[%clk 0:02:58]} 3. d4 {[%clk 0:03:00]}  Nf6 {[%clk 0:02:58]} 4. Bd3 {[%clk 0:03:00]}  Nc6 {[%clk 0:02:58]} 5. Nf3 {[%clk 0:03:00]}  Bg4 {[%clk 0:02:57]} 6. d5 {[%clk 0:02:59]}  Bxf3 {[%clk 0:02:55]} 7. Qxf3 {[%clk 0:03:00]}  Ne5 {[%clk 0:02:55]} 8. Bb5+ {[%clk 0:03:00]}  Ned7 {[%clk 0:02:55]} 9. O-O {[%clk 0:02:57]}  a6 {[%clk 0:02:50]} 10. Be2 {[%clk 0:02:52]}  g6 {[%clk 0:02:48]} 11. a4 {[%clk 0:02:50]}  Bg7 {[%clk 0:02:48]} 12. Nd2 {[%clk 0:02:50]}  O-O {[%clk 0:02:49]} 13. Nc4 {[%clk 0:02:50]}  b5 {[%clk 0:02:44]} 14. Nd2 {[%clk 0:02:30]}  c4 {[%clk 0:02:42]} 15. Qh3 {[%clk 0:02:20]}  Nc5 {[%clk 0:02:40]} 16. axb5 {[%clk 0:02:07]}  axb5 {[%clk 0:02:41]} 17. Rxa8 {[%clk 0:02:07]}  Qxa8 {[%clk 0:02:42]} 18. Qe3 {[%clk 0:02:02]}  Qa1 {[%clk 0:02:31]} 19. f4 {[%clk 0:01:56]}  Nfd7 {[%clk 0:02:32]} 20. Nf3 {[%clk 0:01:42]}  Nb3 {[%clk 0:02:28]} 21. e5 {[%clk 0:01:29]}  Ndc5 {[%clk 0:02:15]} 22. f5 {[%clk 0:01:20]}  Nxc1 {[%clk 0:02:09]} 23. Rxc1 {[%clk 0:01:10]}  Qxb2 {[%clk 0:02:09]} 24. f6 {[%clk 0:01:06]}  exf6 {[%clk 0:02:10]} 25. exd6 {[%clk 0:01:06]}  f5 {[%clk 0:02:11]} 26. Rd1 {[%clk 0:00:57]}  Ne4 {[%clk 0:02:07]} 27. d7 {[%clk 0:00:46]}  Qxc3 {[%clk 0:02:02]} 28. Qb6 {[%clk 0:00:45]}  Qf6 {[%clk 0:02:00]} 29. Qxb5 {[%clk 0:00:31]}  Nc3 {[%clk 0:02:00]} 30. Qxc4 {[%clk 0:00:29]}  Nxd1 {[%clk 0:02:00]} 31. Bxd1 {[%clk 0:00:30]}  Qb6+ {[%clk 0:02:00]} 32. Kh1 {[%clk 0:00:27]}  Rd8 {[%clk 0:01:56]} 33. Qc8 {[%clk 0:00:22]}  Bf6 {[%clk 0:01:56]} 34. Qc6 {[%clk 0:00:04]}  Qb1 {[%clk 0:01:49]} 35. Qxf6 {[%clk 0:00:01]}  Qxd1+ {[%clk 0:01:49]} 36. Ng1 {[%clk 0:00:02]}  Rxd7 {[%clk 0:01:49]} 37. Qb2 {[%clk 0:00:01]}  Qxd5 {[%clk 0:01:48]} 38. Qb8+ {[%clk 0:00:01]}  Kg7 {[%clk 0:01:48]} 39. Qg3 {[%clk 0:00:02]}  h5 {[%clk 0:01:49]} 40. h3 {[%clk 0:00:02]}  Qd6 {[%clk 0:01:49]} 41. Qb3 {[%clk 0:00:02]}  Qe6 {[%clk 0:01:49]} 42. Qb2+ {[%clk 0:00:02]}  Qf6 {[%clk 0:01:49]} 43. Qb3 {[%clk 0:00:02]}  Rd2 {[%clk 0:01:49]} 44. Nf3 {[%clk 0:00:03]}  Rb2 {[%clk 0:01:48]} 45. Qd3 {[%clk 0:00:03]}  h4 {[%clk 0:01:42]} 46. Ng1 {[%clk 0:00:03]}  Qe5 {[%clk 0:01:40]} 47. Qf3 {[%clk 0:00:02]}  Qe1 {[%clk 0:01:37]} 48. Qa8 {[%clk 0:00:02]}  Rb1 {[%clk 0:01:36]} 49. Qa7 {[%clk 0:00:02]}  Qxg1+ {[%clk 0:01:34]} 50. Qxg1 {[%clk 0:00:03]}  Rxg1+ {[%clk 0:01:35]} 51. Kxg1 {[%clk 0:00:00]}  Kf6 {[%clk 0:01:35]} 0-1

[Event "January 2 Late 2024"]
[Site "https://www.chess.com"]
[Date "2024.01.02"]
[Round "4"]
[White "Martinez Alcantara, Jose Eduardo"]
[Black "Makridis, Dimitrios"]
[Result "1-0"]
[Board "25"]
[TimeControl "180+1"]
[WhiteFideId "3805662"]
[BlackFideId "25864475"]
[WhiteElo "3046"]
[BlackElo "2715"]
[WhiteTeam "PER"]
[BlackTeam "GRE"]
[WhiteClock "0:00:19"]
[BlackClock "0:00:00"]

1. e4 {[%clk 0:03:00]}  c5 {[%clk 0:02:57]} 2. Nf3 {[%clk 0:03:00]}  d6 {[%clk 0:02:56]} 3. c3 {[%clk 0:03:01]}  Nf6 {[%clk 0:02:51]} 4. h3 {[%clk 0:03:01]}  g6 {[%clk 0:02:51]} 5. Bd3 {[%clk 0:03:01]}  Bg7 {[%clk 0:02:52]} 6. Bc2 {[%clk 0:03:02]}  O-O {[%clk 0:02:52]} 7. O-O {[%clk 0:03:02]}  Nc6 {[%clk 0:02:52]} 8. d4 {[%clk 0:03:02]}  e5 {[%clk 0:02:51]} 9. d5 {[%clk 0:03:01]}  Ne7 {[%clk 0:02:50]} 10. a4 {[%clk 0:03:01]}  h6 {[%clk 0:02:50]} 11. Na3 {[%clk 0:03:02]}  Kh7 {[%clk 0:02:49]} 12. Nc4 {[%clk 0:03:02]}  Ne8 {[%clk 0:02:47]} 13. b4 {[%clk 0:02:58]}  cxb4 {[%clk 0:02:45]} 14. cxb4 {[%clk 0:02:59]}  f5 {[%clk 0:02:45]} 15. b5 {[%clk 0:02:58]}  fxe4 {[%clk 0:02:35]} 16. Nfd2 {[%clk 0:02:56]}  Bf5 {[%clk 0:02:34]} 17. Nxe4 {[%clk 0:02:46]}  Rc8 {[%clk 0:02:33]} 18. Ne3 {[%clk 0:02:39]}  Nf6 {[%clk 0:02:21]} 19. Nxf5 {[%clk 0:02:33]}  gxf5 {[%clk 0:02:22]} 20. Ng3 {[%clk 0:02:05]}  e4 {[%clk 0:02:20]} 21. Bb2 {[%clk 0:01:56]}  Nfxd5 {[%clk 0:02:08]} 22. Bxg7 {[%clk 0:01:57]}  Kxg7 {[%clk 0:02:09]} 23. Bb3 {[%clk 0:01:58]}  Nf6 {[%clk 0:02:03]} 24. Qd4 {[%clk 0:01:53]}  Kh7 {[%clk 0:01:54]} 25. Rad1 {[%clk 0:01:50]}  d5 {[%clk 0:01:53]} 26. Qxa7 {[%clk 0:01:49]}  f4 {[%clk 0:01:51]} 27. Nxe4 {[%clk 0:01:22]}  Nxe4 {[%clk 0:01:48]} 28. Bxd5 {[%clk 0:01:22]}  Nxd5 {[%clk 0:01:39]} 29. Qxb7+ {[%clk 0:01:21]}  Rc7 {[%clk 0:01:37]} 30. Qxd5 {[%clk 0:01:21]}  Qxd5 {[%clk 0:01:34]} 31. Rxd5 {[%clk 0:01:21]}  f3 {[%clk 0:01:34]} 32. b6 {[%clk 0:00:57]}  Rc2 {[%clk 0:01:10]} 33. g4 {[%clk 0:00:47]}  Rb2 {[%clk 0:01:05]} 34. a5 {[%clk 0:00:47]}  Ng5 {[%clk 0:00:52]} 35. Kh2 {[%clk 0:00:39]}  Ne4 {[%clk 0:00:52]} 36. Kg1 {[%clk 0:00:35]}  Re8 {[%clk 0:00:26]} 37. Rf5 {[%clk 0:00:24]}  Ng5 {[%clk 0:00:17]} 38. Kh2 {[%clk 0:00:25]}  Ree2 {[%clk 0:00:16]} 39. Kg3 {[%clk 0:00:24]}  Rec2 {[%clk 0:00:12]} 40. Rf4 {[%clk 0:00:23]}  Ra2 {[%clk 0:00:04]} 41. Rb4 {[%clk 0:00:22]}  Re2 {[%clk 0:00:02]} 42. b7 {[%clk 0:00:19]}  Ne4+ {[%clk 0:00:02]} 43. Rxe4 {[%clk 0:00:19]}  Rxe4 {[%clk 0:00:03]} 44. b8=Q {[%clk 0:00:19]}  Ree2 {[%clk 0:00:00]} 45. Qb7+ {[%clk 0:00:19]} 1-0

[Event "January 2 Late 2024"]
[Site "https://www.chess.com"]
[Date "2024.01.02"]
[Round "4"]
[White "Jakubowski, Krzysztof"]
[Black "Alekseenko, Kirill"]
[Result "0-1"]
[Board "28"]
[TimeControl "180+1"]
[WhiteFideId "1112848"]
[BlackFideId "4135539"]
[WhiteElo "2661"]
[BlackElo "2931"]
[WhiteTeam "POL"]
[BlackTeam "AUT"]
[WhiteClock "0:00:09"]
[BlackClock "0:00:30"]

1. e4 {[%clk 0:03:00]}  e5 {[%clk 0:02:59]} 2. Nf3 {[%clk 0:03:00]}  Nc6 {[%clk 0:03:00]} 3. Bc4 {[%clk 0:03:00]}  Bc5 {[%clk 0:02:57]} 4. d3 {[%clk 0:02:59]}  Nf6 {[%clk 0:02:58]} 5. O-O {[%clk 0:02:59]}  d6 {[%clk 0:02:59]} 6. c3 {[%clk 0:02:58]}  h6 {[%clk 0:02:57]} 7. h3 {[%clk 0:02:56]}  Bb6 {[%clk 0:02:58]} 8. a4 {[%clk 0:02:51]}  O-O {[%clk 0:02:57]} 9. Nbd2 {[%clk 0:02:48]}  a5 {[%clk 0:02:57]} 10. Re1 {[%clk 0:02:46]}  Ne7 {[%clk 0:02:56]} 11. Bb3 {[%clk 0:02:43]}  Be6 {[%clk 0:02:56]} 12. Nc4 {[%clk 0:02:41]}  Bc5 {[%clk 0:02:47]} 13. Be3 {[%clk 0:02:39]}  Bxe3 {[%clk 0:02:42]} 14. Nxe3 {[%clk 0:02:38]}  Qd7 {[%clk 0:02:37]} 15. d4 {[%clk 0:02:21]}  exd4 {[%clk 0:02:18]} 16. Nxd4 {[%clk 0:02:11]}  Nxe4 {[%clk 0:02:03]} 17. Nxe6 {[%clk 0:01:55]}  fxe6 {[%clk 0:01:59]} 18. Ng4 {[%clk 0:01:35]}  Nc5 {[%clk 0:01:52]} 19. Ba2 {[%clk 0:01:35]}  Nc6 {[%clk 0:01:47]} 20. b4 {[%clk 0:01:25]}  axb4 {[%clk 0:01:37]} 21. cxb4 {[%clk 0:01:26]}  Nxb4 {[%clk 0:01:34]} 22. Nxh6+ {[%clk 0:01:25]}  gxh6 {[%clk 0:01:35]} 23. Qg4+ {[%clk 0:01:24]}  Qg7 {[%clk 0:01:35]} 24. Qxb4 {[%clk 0:01:23]}  Rf6 {[%clk 0:01:27]} 25. a5 {[%clk 0:00:44]}  Raf8 {[%clk 0:01:25]} 26. Re2 {[%clk 0:00:40]}  Rxf2 {[%clk 0:01:02]} 27. Rxf2 {[%clk 0:00:41]}  Qxa1+ {[%clk 0:01:02]} 28. Bb1 {[%clk 0:00:41]}  Rxf2 {[%clk 0:00:56]} 29. Kxf2 {[%clk 0:00:38]}  Qf6+ {[%clk 0:00:55]} 30. Kg1 {[%clk 0:00:37]}  Kf7 {[%clk 0:00:48]} 31. Qg4 {[%clk 0:00:34]}  Qg5 {[%clk 0:00:45]} 32. Qf3+ {[%clk 0:00:33]}  Ke7 {[%clk 0:00:45]} 33. Qc3 {[%clk 0:00:28]}  Qf6 {[%clk 0:00:43]} 34. Qe1 {[%clk 0:00:25]}  Qd4+ {[%clk 0:00:42]} 35. Kh1 {[%clk 0:00:25]}  d5 {[%clk 0:00:39]} 36. Qc1 {[%clk 0:00:24]}  Kd6 {[%clk 0:00:36]} 37. Bc2 {[%clk 0:00:19]}  Qf6 {[%clk 0:00:34]} 38. Qb1 {[%clk 0:00:18]}  e5 {[%clk 0:00:30]} 39. Qb4 {[%clk 0:00:09]}  Qf1+ {[%clk 0:00:30]} 0-1

[Event "January 2 Late 2024"]
[Site "https://www.chess.com"]
[Date "2024.01.02"]
[Round "4"]
[White "Troff, Kayden"]
[Black "Lund, Gunnar"]
[Result "1-0"]
[Board "31"]
[TimeControl "180+1"]
[WhiteFideId "2047896"]
[BlackFideId "1520814"]
[WhiteElo "2792"]
[BlackElo "2582"]
[WhiteTeam "USA"]
[BlackTeam "NOR"]
[WhiteClock "0:00:06"]
[BlackClock "0:00:04"]

1. d4 {[%clk 0:03:00]}  d6 {[%clk 0:02:59]} 2. Nf3 {[%clk 0:03:01]}  Nf6 {[%clk 0:02:58]} 3. Bg5 {[%clk 0:03:01]}  Nbd7 {[%clk 0:02:59]} 4. e3 {[%clk 0:03:01]}  e5 {[%clk 0:02:59]} 5. Nc3 {[%clk 0:02:51]}  Be7 {[%clk 0:02:58]} 6. Bc4 {[%clk 0:02:49]}  O-O {[%clk 0:02:55]} 7. O-O {[%clk 0:02:49]}  c6 {[%clk 0:02:53]} 8. dxe5 {[%clk 0:02:31]}  Nxe5 {[%clk 0:02:52]} 9. Nxe5 {[%clk 0:02:24]}  dxe5 {[%clk 0:02:52]} 10. Qf3 {[%clk 0:02:17]}  Bg4 {[%clk 0:02:42]} 11. Qg3 {[%clk 0:02:16]}  Bf5 {[%clk 0:02:15]} 12. Qxe5 {[%clk 0:02:10]}  Bxc2 {[%clk 0:02:00]} 13. Rac1 {[%clk 0:02:09]}  Bg6 {[%clk 0:01:56]} 14. Rfd1 {[%clk 0:02:08]}  Qe8 {[%clk 0:01:56]} 15. Qc7 {[%clk 0:02:01]}  Nd5 {[%clk 0:01:43]} 16. Rxd5 {[%clk 0:01:44]}  cxd5 {[%clk 0:01:41]} 17. Bxe7 {[%clk 0:01:43]}  dxc4 {[%clk 0:00:51]} 18. Bxf8 {[%clk 0:01:41]}  Qxf8 {[%clk 0:00:52]} 19. Qxc4 {[%clk 0:01:34]}  Rc8 {[%clk 0:00:51]} 20. Qb3 {[%clk 0:01:25]}  b6 {[%clk 0:00:51]} 21. Rd1 {[%clk 0:01:22]}  h6 {[%clk 0:00:48]} 22. h3 {[%clk 0:01:19]}  Qe7 {[%clk 0:00:46]} 23. Qd5 {[%clk 0:01:17]}  Kh7 {[%clk 0:00:46]} 24. Qd7 {[%clk 0:01:16]}  Qc5 {[%clk 0:00:39]} 25. Qxa7 {[%clk 0:01:09]}  Rc6 {[%clk 0:00:35]} 26. Qd7 {[%clk 0:01:05]}  Rf6 {[%clk 0:00:34]} 27. Qd4 {[%clk 0:00:57]}  Qf5 {[%clk 0:00:32]} 28. Rd2 {[%clk 0:00:57]}  Qg5 {[%clk 0:00:26]} 29. Ne4 {[%clk 0:00:51]}  Bxe4 {[%clk 0:00:27]} 30. Qxe4+ {[%clk 0:00:52]}  g6 {[%clk 0:00:26]} 31. g3 {[%clk 0:00:46]}  Qb5 {[%clk 0:00:23]} 32. Qd5 {[%clk 0:00:43]}  Qb4 {[%clk 0:00:22]} 33. Qd4 {[%clk 0:00:42]}  Qe7 {[%clk 0:00:22]} 34. h4 {[%clk 0:00:31]}  h5 {[%clk 0:00:22]} 35. Qd8 {[%clk 0:00:29]}  Qe5 {[%clk 0:00:21]} 36. Qd5 {[%clk 0:00:28]}  Qe7 {[%clk 0:00:20]} 37. Rd4 {[%clk 0:00:28]}  Qc7 {[%clk 0:00:16]} 38. Qd8 {[%clk 0:00:25]}  Qc1+ {[%clk 0:00:15]} 39. Rd1 {[%clk 0:00:25]}  Qxb2 {[%clk 0:00:15]} 40. Qd2 {[%clk 0:00:19]}  Qe5 {[%clk 0:00:14]} 41. Qd4 {[%clk 0:00:19]}  Qe7 {[%clk 0:00:13]} 42. Rc1 {[%clk 0:00:19]}  Rd6 {[%clk 0:00:13]} 43. Qf4 {[%clk 0:00:19]}  Rd2 {[%clk 0:00:12]} 44. Rc7 {[%clk 0:00:18]}  Rd7 {[%clk 0:00:11]} 45. Rxd7 {[%clk 0:00:17]}  Qxd7 {[%clk 0:00:12]} 46. Kh2 {[%clk 0:00:17]}  Kg8 {[%clk 0:00:10]} 47. Qb8+ {[%clk 0:00:16]}  Kh7 {[%clk 0:00:10]} 48. Qxb6 {[%clk 0:00:15]}  Qd2 {[%clk 0:00:10]} 49. Qf6 {[%clk 0:00:14]}  Qxa2 {[%clk 0:00:10]} 50. e4 {[%clk 0:00:14]}  Kg8 {[%clk 0:00:10]} 51. e5 {[%clk 0:00:15]}  Qb2 {[%clk 0:00:11]} 52. Kg2 {[%clk 0:00:14]}  Qd4 {[%clk 0:00:11]} 53. Qf4 {[%clk 0:00:14]}  Qd5+ {[%clk 0:00:11]} 54. Kh2 {[%clk 0:00:14]}  Qb3 {[%clk 0:00:11]} 55. Qf6 {[%clk 0:00:14]}  Qc3 {[%clk 0:00:11]} 56. Qg5 {[%clk 0:00:12]}  Qc2 {[%clk 0:00:10]} 57. Qe3 {[%clk 0:00:11]}  Qc4 {[%clk 0:00:09]} 58. Kg2 {[%clk 0:00:10]}  Qe6 {[%clk 0:00:10]} 59. Qe4 {[%clk 0:00:10]}  Kg7 {[%clk 0:00:11]} 60. Kf3 {[%clk 0:00:09]}  Kg8 {[%clk 0:00:11]} 61. Kg2 {[%clk 0:00:09]}  Kg7 {[%clk 0:00:11]} 62. f3 {[%clk 0:00:10]}  Qa2+ {[%clk 0:00:10]} 63. Kh3 {[%clk 0:00:10]}  Qe6+ {[%clk 0:00:11]} 64. g4 {[%clk 0:00:10]}  hxg4+ {[%clk 0:00:12]} 65. fxg4 {[%clk 0:00:10]}  Qb3+ {[%clk 0:00:13]} 66. Kg2 {[%clk 0:00:11]}  Qb2+ {[%clk 0:00:13]} 67. Kg3 {[%clk 0:00:11]}  Qc3+ {[%clk 0:00:14]} 68. Kf2 {[%clk 0:00:10]}  Qd2+ {[%clk 0:00:13]} 69. Kf3 {[%clk 0:00:09]}  Qc3+ {[%clk 0:00:13]} 70. Qe3 {[%clk 0:00:09]}  Qc6+ {[%clk 0:00:13]} 71. Kg3 {[%clk 0:00:10]}  Qd5 {[%clk 0:00:09]} 72. Qf4 {[%clk 0:00:08]}  Qd3+ {[%clk 0:00:09]} 73. Qf3 {[%clk 0:00:08]}  Qd4 {[%clk 0:00:09]} 74. Qf6+ {[%clk 0:00:07]}  Kg8 {[%clk 0:00:09]} 75. h5 {[%clk 0:00:07]}  Qe3+ {[%clk 0:00:08]} 76. Kh4 {[%clk 0:00:06]}  Qe1+ {[%clk 0:00:08]} 77. Kg5 {[%clk 0:00:06]}  gxh5 {[%clk 0:00:04]} 78. Kh6 {[%clk 0:00:05]}  Qe3+ {[%clk 0:00:03]} 79. g5 {[%clk 0:00:06]}  Kf8 {[%clk 0:00:04]} 80. Qd8# {[%clk 0:00:06]} 1-0

[Event "January 2 Late 2024"]
[Site "https://www.chess.com"]
[Date "2024.01.02"]
[Round "4"]
[White "Samant Aditya S"]
[Black "Kochiev, Ivan"]
[Result "0-1"]
[Board "33"]
[TimeControl "180+1"]
[WhiteFideId "35080580"]
[BlackFideId "2917890"]
[WhiteElo "2732"]
[BlackElo "2557"]
[WhiteTeam "IND"]
[BlackTeam "BUL"]
[WhiteClock "0:00:59"]
[BlackClock "0:00:09"]

1. b3 {[%clk 0:03:00]}  d5 {[%clk 0:02:56]} 2. Bb2 {[%clk 0:03:01]}  Bg4 {[%clk 0:02:53]} 3. h3 {[%clk 0:03:01]}  Bh5 {[%clk 0:02:51]} 4. Nf3 {[%clk 0:03:01]}  Nd7 {[%clk 0:02:51]} 5. e3 {[%clk 0:02:59]}  Ngf6 {[%clk 0:02:50]} 6. c4 {[%clk 0:02:57]}  c6 {[%clk 0:02:49]} 7. Nc3 {[%clk 0:02:57]}  e5 {[%clk 0:02:48]} 8. Be2 {[%clk 0:02:57]}  a6 {[%clk 0:02:47]} 9. O-O {[%clk 0:02:55]}  Bd6 {[%clk 0:02:47]} 10. cxd5 {[%clk 0:02:44]}  Nxd5 {[%clk 0:02:40]} 11. Nh4 {[%clk 0:02:45]}  Bxe2 {[%clk 0:02:31]} 12. Qxe2 {[%clk 0:02:39]}  Qxh4 {[%clk 0:02:29]} 13. Qd3 {[%clk 0:02:33]}  Nc5 {[%clk 0:02:12]} 14. Qf5 {[%clk 0:02:31]}  Qf6 {[%clk 0:01:33]} 15. Qg4 {[%clk 0:02:30]}  Nxc3 {[%clk 0:01:27]} 16. Bxc3 {[%clk 0:02:31]}  h5 {[%clk 0:01:23]} 17. Qe2 {[%clk 0:02:28]}  Qe6 {[%clk 0:01:08]} 18. d4 {[%clk 0:02:08]}  Ne4 {[%clk 0:01:02]} 19. Bb2 {[%clk 0:02:07]}  exd4 {[%clk 0:01:00]} 20. Bxd4 {[%clk 0:02:08]}  Be5 {[%clk 0:00:57]} 21. Rfd1 {[%clk 0:02:08]}  O-O-O {[%clk 0:00:50]} 22. Bxe5 {[%clk 0:01:56]}  Qxe5 {[%clk 0:00:45]} 23. Qf3 {[%clk 0:01:56]}  f5 {[%clk 0:00:40]} 24. Rac1 {[%clk 0:01:49]}  Rxd1+ {[%clk 0:00:32]} 25. Rxd1 {[%clk 0:01:50]}  g5 {[%clk 0:00:32]} 26. Qe2 {[%clk 0:01:33]}  g4 {[%clk 0:00:23]} 27. h4 {[%clk 0:01:32]}  g3 {[%clk 0:00:19]} 28. f4 {[%clk 0:01:30]}  Qf6 {[%clk 0:00:17]} 29. Qd3 {[%clk 0:01:16]}  Rd8 {[%clk 0:00:11]} 30. Qc2 {[%clk 0:01:06]}  Rxd1+ {[%clk 0:00:11]} 31. Qxd1 {[%clk 0:01:07]}  Qxh4 {[%clk 0:00:12]} 32. Qd4 {[%clk 0:00:56]}  Qh2+ {[%clk 0:00:09]} 33. Kf1 {[%clk 0:00:57]}  Qh1+ {[%clk 0:00:09]} 34. Ke2 {[%clk 0:00:58]}  Qxg2+ {[%clk 0:00:10]} 35. Kd1 {[%clk 0:00:59]}  Qd2+ {[%clk 0:00:09]} 36. Qxd2 {[%clk 0:00:59]}  Nxd2 {[%clk 0:00:10]} 37. Ke2 {[%clk 0:00:58]}  h4 {[%clk 0:00:08]} 38. e4 {[%clk 0:00:58]}  Nxe4 {[%clk 0:00:07]} 39. Kf3 {[%clk 0:00:58]}  h3 {[%clk 0:00:08]} 40. b4 {[%clk 0:00:58]}  g2 {[%clk 0:00:08]} 41. a4 {[%clk 0:00:58]}  g1=Q {[%clk 0:00:09]} 42. b5 {[%clk 0:00:59]}  Qf2# {[%clk 0:00:09]} 0-1

[Event "January 2 Late 2024"]
[Site "https://www.chess.com"]
[Date "2024.01.02"]
[Round "4"]
[White "Lewtak, Damian"]
[Black "Ankerst, Mihael"]
[Result "1-0"]
[Board "34"]
[TimeControl "180+1"]
[WhiteFideId "1141724"]
[BlackFideId "14602369"]
[WhiteElo "2726"]
[BlackElo "2374"]
[WhiteTeam "POL"]
[BlackTeam "SLO"]
[WhiteClock "0:00:12"]
[BlackClock "0:00:59"]

1. e4 {[%clk 0:03:00]}  c5 {[%clk 0:02:59]} 2. Nf3 {[%clk 0:03:01]}  Qb6 {[%clk 0:02:59]} 3. Nc3 {[%clk 0:02:43]}  Nc6 {[%clk 0:03:00]} 4. g3 {[%clk 0:02:35]}  e6 {[%clk 0:03:00]} 5. Bg2 {[%clk 0:02:35]}  d6 {[%clk 0:03:01]} 6. O-O {[%clk 0:02:36]}  Be7 {[%clk 0:03:01]} 7. Re1 {[%clk 0:02:37]}  Nf6 {[%clk 0:03:02]} 8. d3 {[%clk 0:02:37]}  O-O {[%clk 0:03:01]} 9. b3 {[%clk 0:02:37]}  a6 {[%clk 0:03:02]} 10. Bb2 {[%clk 0:02:38]}  Bd7 {[%clk 0:03:02]} 11. h3 {[%clk 0:02:30]}  Rac8 {[%clk 0:03:02]} 12. Ne2 {[%clk 0:02:26]}  Rfd8 {[%clk 0:03:00]} 13. c4 {[%clk 0:02:25]}  Be8 {[%clk 0:02:57]} 14. g4 {[%clk 0:02:23]}  h6 {[%clk 0:02:55]} 15. Ng3 {[%clk 0:02:23]}  d5 {[%clk 0:02:53]} 16. exd5 {[%clk 0:02:22]}  exd5 {[%clk 0:02:53]} 17. Nf5 {[%clk 0:02:22]}  Bf8 {[%clk 0:02:53]} 18. Nxh6+ {[%clk 0:02:20]}  Kh7 {[%clk 0:02:51]} 19. Nf5 {[%clk 0:01:55]}  dxc4 {[%clk 0:02:47]} 20. Bxf6 {[%clk 0:01:55]}  Rxd3 {[%clk 0:02:47]} 21. Qb1 {[%clk 0:01:17]}  gxf6 {[%clk 0:02:44]} 22. Bf1 {[%clk 0:01:05]}  Kg8 {[%clk 0:02:38]} 23. Bxd3 {[%clk 0:01:03]}  cxd3 {[%clk 0:02:38]} 24. Qxd3 {[%clk 0:01:04]}  Nb4 {[%clk 0:02:39]} 25. Qc3 {[%clk 0:00:59]}  Bb5 {[%clk 0:02:36]} 26. Rad1 {[%clk 0:00:56]}  Nxa2 {[%clk 0:02:35]} 27. Qe3 {[%clk 0:00:51]}  Nb4 {[%clk 0:02:30]} 28. g5 {[%clk 0:00:24]}  Nc2 {[%clk 0:02:27]} 29. Qf4 {[%clk 0:00:24]}  Nxe1 {[%clk 0:02:24]} 30. Rxe1 {[%clk 0:00:25]}  fxg5 {[%clk 0:02:14]} 31. Nxg5 {[%clk 0:00:26]}  Qg6 {[%clk 0:02:13]} 32. Kh2 {[%clk 0:00:24]}  Bd7 {[%clk 0:02:06]} 33. Ne7+ {[%clk 0:00:21]}  Bxe7 {[%clk 0:02:03]} 34. Rxe7 {[%clk 0:00:22]}  Be8 {[%clk 0:01:52]} 35. Re3 {[%clk 0:00:22]}  Rd8 {[%clk 0:01:12]} 36. Rg3 {[%clk 0:00:20]}  Kf8 {[%clk 0:01:12]} 37. Qh4 {[%clk 0:00:16]}  Bd7 {[%clk 0:01:03]} 38. Nh7+ {[%clk 0:00:14]}  Ke8 {[%clk 0:01:02]} 39. Rxg6 {[%clk 0:00:14]}  fxg6 {[%clk 0:01:00]} 40. Nf6+ {[%clk 0:00:14]}  Ke7 {[%clk 0:01:00]} 41. Nd5+ {[%clk 0:00:12]}  Ke8 {[%clk 0:00:59]} 42. Qe7# {[%clk 0:00:12]} 1-0

[Event "January 2 Late 2024"]
[Site "https://www.chess.com"]
[Date "2024.01.02"]
[Round "4"]
[White "Vachier-Lagrave, Maxime"]
[Black "Jing, Andrew"]
[Result "1-0"]
[Board "36"]
[TimeControl "180+1"]
[WhiteFideId "623539"]
[BlackFideId "30984076"]
[WhiteElo "3188"]
[BlackElo "2161"]
[WhiteTeam "FRA"]
[BlackTeam "USA"]
[WhiteClock "0:00:42"]
[BlackClock "0:00:16"]

1. e4 {[%clk 0:02:55]}  e5 {[%clk 0:02:58]} 2. Nf3 {[%clk 0:02:55]}  Nc6 {[%clk 0:02:55]} 3. Bb5 {[%clk 0:02:55]}  Nf6 {[%clk 0:02:54]} 4. d3 {[%clk 0:02:53]}  d6 {[%clk 0:02:47]} 5. O-O {[%clk 0:02:53]}  Bd7 {[%clk 0:02:44]} 6. c3 {[%clk 0:02:52]}  g6 {[%clk 0:02:43]} 7. Re1 {[%clk 0:02:51]}  Bg7 {[%clk 0:02:44]} 8. Nbd2 {[%clk 0:02:52]}  O-O {[%clk 0:02:43]} 9. a4 {[%clk 0:02:51]}  a6 {[%clk 0:02:43]} 10. Bc4 {[%clk 0:02:51]}  h6 {[%clk 0:02:40]} 11. a5 {[%clk 0:02:51]}  Kh7 {[%clk 0:02:40]} 12. b4 {[%clk 0:02:51]}  Ne7 {[%clk 0:02:39]} 13. Bb2 {[%clk 0:02:42]}  Nh5 {[%clk 0:02:35]} 14. d4 {[%clk 0:02:38]}  Nf4 {[%clk 0:02:31]} 15. Nf1 {[%clk 0:02:28]}  Be6 {[%clk 0:02:23]} 16. Bxe6 {[%clk 0:02:22]}  Nxe6 {[%clk 0:02:22]} 17. d5 {[%clk 0:02:20]}  Nf4 {[%clk 0:02:20]} 18. g3 {[%clk 0:02:17]}  Nh5 {[%clk 0:02:18]} 19. c4 {[%clk 0:02:16]}  f5 {[%clk 0:02:15]} 20. N1d2 {[%clk 0:02:13]}  f4 {[%clk 0:02:13]} 21. g4 {[%clk 0:02:13]}  Nf6 {[%clk 0:02:12]} 22. h3 {[%clk 0:02:13]}  Qd7 {[%clk 0:02:05]} 23. Kh2 {[%clk 0:02:11]}  g5 {[%clk 0:02:01]} 24. Rg1 {[%clk 0:02:08]}  Ng6 {[%clk 0:02:00]} 25. Qa4 {[%clk 0:02:05]}  Qe7 {[%clk 0:01:53]} 26. Rac1 {[%clk 0:02:03]}  Nd7 {[%clk 0:01:45]} 27. Ba3 {[%clk 0:02:04]}  Rfc8 {[%clk 0:01:34]} 28. c5 {[%clk 0:02:03]}  Bf8 {[%clk 0:01:32]} 29. c6 {[%clk 0:02:00]}  bxc6 {[%clk 0:01:32]} 30. Rxc6 {[%clk 0:02:00]}  Nb8 {[%clk 0:01:30]} 31. Rc3 {[%clk 0:01:59]}  Ra7 {[%clk 0:01:29]} 32. Rgc1 {[%clk 0:02:00]}  Rb7 {[%clk 0:01:29]} 33. Qc2 {[%clk 0:01:52]}  Qd7 {[%clk 0:01:21]} 34. Nc4 {[%clk 0:01:46]}  Re8 {[%clk 0:01:07]} 35. Rb3 {[%clk 0:01:28]}  Be7 {[%clk 0:00:57]} 36. Bb2 {[%clk 0:01:28]}  Bf6 {[%clk 0:00:54]} 37. Bc3 {[%clk 0:01:26]}  Kg7 {[%clk 0:00:53]} 38. Qe2 {[%clk 0:01:17]}  Qb5 {[%clk 0:00:38]} 39. Be1 {[%clk 0:01:08]}  Rh8 {[%clk 0:00:36]} 40. Nfd2 {[%clk 0:01:06]}  Nh4 {[%clk 0:00:33]} 41. f3 {[%clk 0:01:02]}  Ng6 {[%clk 0:00:33]} 42. Nb1 {[%clk 0:00:59]}  h5 {[%clk 0:00:32]} 43. Kg2 {[%clk 0:00:59]}  hxg4 {[%clk 0:00:32]} 44. hxg4 {[%clk 0:01:00]}  Rh7 {[%clk 0:00:30]} 45. Bf2 {[%clk 0:01:00]}  Qe8 {[%clk 0:00:29]} 46. Rh1 {[%clk 0:01:00]}  Rxh1 {[%clk 0:00:29]} 47. Kxh1 {[%clk 0:01:01]}  Qh8+ {[%clk 0:00:28]} 48. Kg1 {[%clk 0:01:00]}  Nh4 {[%clk 0:00:28]} 49. Nc3 {[%clk 0:00:58]}  Ng6 {[%clk 0:00:28]} 50. b5 {[%clk 0:00:56]}  axb5 {[%clk 0:00:28]} 51. Rxb5 {[%clk 0:00:57]}  Rxb5 {[%clk 0:00:24]} 52. Nxb5 {[%clk 0:00:58]}  Na6 {[%clk 0:00:25]} 53. Nd2 {[%clk 0:00:51]}  Qc8 {[%clk 0:00:24]} 54. Qc4 {[%clk 0:00:51]}  Qb7 {[%clk 0:00:19]} 55. Kg2 {[%clk 0:00:46]}  Ne7 {[%clk 0:00:18]} 56. Na7 {[%clk 0:00:41]}  Kg6 {[%clk 0:00:18]} 57. Nc6 {[%clk 0:00:41]}  Nxc6 {[%clk 0:00:18]} 58. dxc6 {[%clk 0:00:42]}  Nb4 {[%clk 0:00:16]} 59. cxb7 {[%clk 0:00:42]} 1-0